bitfinex/quotes_BTCUSD_20240927
["timestamp","ask_amount","ask_price","bid_price","bid_amount"]
[1727416201173,0.47076538,65413.0,65412.0,0.59684544]
[1727416201399,0.47076538,65413.0,65412.0,0.44316494]
[1727416201613,0.47076538,65413.0,65412.0,0.4487762]
[1727416201908,0.47076538,65413.0,65412.0,0.60899673]
[1727416202335,0.47076538,65413.0,65412.0,0.60905341]
[1727416202560,0.47076538,65413.0,65412.0,0.63112784]
[1727416202778,0.47076538,65413.0,65412.0,0.62412784]
[1727416203000,0.47076538,65413.0,65412.0,0.62612784]
[1727416203213,0.47076538,65413.0,65412.0,0.63212784]
[1727416203875,0.47076538,65413.0,65412.0,0.61351658]
[1727416204101,0.47076538,65413.0,65412.0,0.63413673]
[1727416204321,0.47076538,65413.0,65412.0,0.62713673]
[1727416204538,0.47076538,65413.0,65412.0,0.63413673]
[1727416204759,0.47076538,65413.0,65412.0,0.62713673]
[1727416205179,0.47076538,65413.0,65412.0,0.63613673]
[1727416206054,0.47076538,65413.0,65412.0,1.44054144]
[1727416206274,0.47076538,65413.0,65412.0,1.49389395]
[1727416206697,0.459457,65413.0,65412.0,1.49389395]
[1727416208031,0.459457,65413.0,65412.0,0.88737737]
[1727416208032,0.633457,65413.0,65412.0,0.88737737]
[1727416208337,0.174,65407.0,65404.0,0.15366778]
[1727416208541,0.0991,65402.0,65401.0,0.22934202]
[1727416208752,0.55573,65402.0,65401.0,0.22934202]
[1727416208968,0.55573,65402.0,65401.0,0.15595987]
[1727416209180,0.55573,65402.0,65401.0,0.152902]
[1727416209626,0.55573,65402.0,65401.0,0.30818994]
[1727416210322,0.56441617,65402.0,65401.0,0.43118994]
[1727416210544,0.46931617,65402.0,65401.0,0.43118994]
[1727416210982,0.46731617,65402.0,65401.0,0.43118994]
[1727416211213,0.46731617,65402.0,65401.0,0.43418994]
[1727416211431,0.46731617,65402.0,65401.0,0.43718994]
[1727416211875,0.46731617,65402.0,65401.0,0.43418994]
[1727416212104,0.46831617,65402.0,65401.0,0.44018994]
[1727416212502,0.46731617,65402.0,65401.0,0.43418994]
[1727416213166,0.46731617,65402.0,65401.0,0.43118994]
[1727416213673,0.46731617,65402.0,65401.0,0.43618994]
[1727416214096,0.46731617,65402.0,65401.0,0.43118994]
[1727416214374,0.46731617,65402.0,65401.0,0.263902]
[1727416214375,0.46831617,65402.0,65401.0,0.263902]
[1727416214633,0.46831617,65402.0,65401.0,0.011]
[1727416214877,0.71971617,65402.0,65401.0,0.011]
[1727416215365,0.72171617,65402.0,65401.0,0.011]
[1727416215602,0.56681617,65402.0,65401.0,0.006]
[1727416215841,0.56681617,65402.0,65401.0,0.158902]
[1727416216076,0.56681617,65402.0,65401.0,0.152902]
[1727416216077,0.56581617,65402.0,65401.0,0.152902]
[1727416216941,0.56581617,65402.0,65401.0,0.154902]
[1727416217377,0.56926766,65402.0,65401.0,0.154902]
[1727416217589,0.56926766,65402.0,65401.0,0.155902]
[1727416217813,0.57426766,65402.0,65401.0,0.152902]
[1727416218031,0.57626766,65402.0,65401.0,0.152902]
[1727416218254,0.57126766,65402.0,65401.0,0.152902]
[1727416218438,0.56926766,65402.0,65401.0,0.152902]
[1727416218653,0.56926766,65402.0,65401.0,0.157902]
[1727416219104,0.47076766,65402.0,65401.0,0.33325364]
[1727416223762,0.47076766,65402.0,65401.0,0.61154158]
[1727416223991,0.46835745,65402.0,65401.0,0.61154158]
[1727416224439,0.47081576,65402.0,65401.0,0.61154158]
[1727416224893,0.46837861,65402.0,65401.0,0.76607427]
[1727416225126,0.47487768,65402.0,65401.0,0.76607427]
[1727416225603,0.47487768,65402.0,65401.0,0.7786745]
[1727416226248,0.47361628,65402.0,65401.0,0.7786745]
[1727416226913,0.47361628,65402.0,65401.0,0.75976212]
[1727416227631,0.20889553,65402.0,65401.0,0.75976212]
[1727416227855,0.19264785,65402.0,65401.0,0.75975664]
[1727416228312,0.19264785,65402.0,65401.0,0.75977876]
[1727416228527,0.19264785,65402.0,65401.0,0.71914213]
[1727416228747,0.19264785,65402.0,65401.0,0.72079413]
[1727416228959,0.19364785,65402.0,65401.0,0.73479413]
[1727416229171,0.19364785,65402.0,65401.0,0.73279413]
[1727416229587,0.19364785,65402.0,65401.0,0.73479413]
[1727416230000,0.19364785,65402.0,65401.0,0.73279413]
[1727416230213,0.19264785,65402.0,65401.0,0.71879413]
[1727416230450,0.19264785,65402.0,65401.0,0.73279413]
[1727416230451,0.19364785,65402.0,65401.0,0.73279413]
[1727416230682,0.19464785,65402.0,65401.0,0.74679413]
[1727416231107,0.19364785,65402.0,65401.0,0.73279413]
[1727416231330,0.19264785,65402.0,65401.0,0.70301593]
[1727416231546,0.19264785,65402.0,65401.0,0.77359595]
[1727416231763,0.19264785,65402.0,65401.0,0.72018686]
[1727416231982,0.19264785,65402.0,65401.0,0.71881716]
[1727416232172,0.19264785,65402.0,65401.0,0.73281716]
[1727416232423,0.19364785,65402.0,65401.0,0.74681716]
[1727416232910,0.19264785,65402.0,65401.0,0.73281716]
[1727416233134,0.19364785,65402.0,65401.0,0.74681716]
[1727416233578,0.19364785,65402.0,65401.0,0.73281716]
[1727416233801,0.19464785,65402.0,65401.0,0.74681716]
[1727416233986,0.19364785,65402.0,65401.0,0.73281716]
[1727416234266,0.19364785,65402.0,65401.0,0.65061716]
[1727416234495,0.21027946,65402.0,65401.0,0.66461716]
[1727416236543,0.21027946,65402.0,65401.0,0.48926552]
[1727416237683,0.20927946,65402.0,65401.0,0.80515373]
[1727416237880,0.21027946,65402.0,65401.0,0.65761716]
[1727416238184,0.21027946,65402.0,65401.0,0.65763467]
[1727416238405,0.20827946,65402.0,65401.0,0.63663467]
[1727416238838,0.20827946,65402.0,65401.0,0.65363467]
[1727416238839,0.21027946,65402.0,65401.0,0.65363467]
[1727416239259,0.20927946,65402.0,65401.0,0.80014966]
[1727416239782,0.20927946,65402.0,65401.0,0.80814966]
[1727416239783,0.21027946,65402.0,65401.0,0.80814966]
[1727416239991,0.21027946,65402.0,65401.0,0.65363467]
[1727416240908,0.21027946,65402.0,65401.0,0.70708056]
[1727416241553,0.21027946,65402.0,65401.0,0.67863947]
[1727416241767,0.21027946,65402.0,65401.0,0.69455005]
[1727416242056,0.21027946,65402.0,65401.0,0.69129537]
[1727416242274,0.21027946,65402.0,65401.0,0.69454786]
[1727416244924,0.000827,65405.0,65404.0,0.275895]
[1727416245155,0.000827,65405.0,65404.0,0.45014847]
[1727416245419,0.459507,65405.0,65404.0,0.44709133]
[1727416245654,0.459507,65405.0,65404.0,0.52309133]
[1727416246373,0.459507,65405.0,65404.0,0.52809133]
[1727416247516,0.46801848,65405.0,65404.0,0.53409133]
[1727416248243,0.46801848,65405.0,65404.0,0.58754109]
[1727416248476,0.46801848,65405.0,65404.0,0.53409133]
[1727416249388,0.46801848,65405.0,65404.0,0.51818294]
[1727416250510,0.46801848,65405.0,65404.0,0.44218294]
[1727416253486,0.46801848,65405.0,65404.0,0.51818294]
[1727416253925,0.46801848,65405.0,65404.0,0.57166894]
[1727416254157,0.46801848,65405.0,65404.0,0.56666894]
[1727416254377,0.46701848,65405.0,65404.0,0.56066894]
[1727416254599,0.46801848,65405.0,65404.0,0.56666894]
[1727416254811,0.46901848,65405.0,65404.0,0.58066894]
[1727416255035,0.46801848,65405.0,65404.0,0.58259602]
[1727416255536,0.46701848,65405.0,65404.0,0.57659602]
[1727416256008,0.46801848,65405.0,65404.0,0.59060391]
[1727416256504,0.46801848,65405.0,65404.0,0.58866894]
[1727416256728,0.46801848,65405.0,65404.0,0.57466894]
[1727416256951,0.46801848,65405.0,65404.0,0.58866894]
[1727416257185,0.46701848,65405.0,65404.0,0.56066894]
[1727416257666,0.46701848,65405.0,65404.0,0.58866894]
[1727416257897,0.46701848,65405.0,65404.0,0.57466894]
[1727416258857,0.46701848,65405.0,65404.0,0.51266894]
[1727416261303,0.46701848,65405.0,65404.0,0.47566894]
[1727416261747,0.46701848,65405.0,65404.0,0.48566894]
[1727416262160,0.46701848,65405.0,65404.0,0.47566894]
[1727416262592,0.46701848,65405.0,65404.0,0.48466894]
[1727416263006,0.46701848,65405.0,65404.0,0.49666894]
[1727416263470,0.46701848,65405.0,65404.0,0.49066894]
[1727416263892,0.46701848,65405.0,65404.0,0.49766894]
[1727416264095,0.46701848,65405.0,65404.0,0.49166894]
[1727416264312,0.46701848,65405.0,65404.0,0.49766894]
[1727416275170,0.46701848,65405.0,65404.0,0.67302058]
[1727416275851,0.459507,65405.0,65404.0,0.67302058]
[1727416276330,0.47216838,65405.0,65404.0,0.66702058]
[1727416276576,0.47216838,65405.0,65404.0,0.67402058]
[1727416276806,0.47216838,65405.0,65404.0,0.66702058]
[1727416277516,0.47216838,65405.0,65404.0,0.67502058]
[1727416283092,0.47216838,65405.0,65404.0,0.49966894]
[1727416284217,0.47216838,65405.0,65404.0,0.67502058]
[1727416286537,0.47216838,65405.0,65404.0,0.49966894]
[1727416286772,0.64506838,65405.0,65404.0,0.44618294]
[1727416287675,0.64506838,65405.0,65404.0,0.267895]
[1727416298693,0.64506838,65405.0,65404.0,0.015]
[1727416298921,0.64326618,65405.0,65404.0,0.015]
[1727416299217,0.79815918,65405.0,65404.0,0.015]
[1727416299464,0.79815918,65405.0,65402.0,0.13922048]
[1727416299465,0.154898,65403.0,65402.0,0.13922048]
[1727416299690,0.788278,65403.0,65402.0,0.001652]
[1727416299910,0.91057434,65403.0,65402.0,0.001652]
[1727416300360,0.75767634,65403.0,65401.0,0.001652]
[1727416300599,0.3296,65402.0,65401.0,0.001652]
[1727416300806,0.94466806,65402.0,65401.0,0.001652]
[1727416301477,0.63538,65402.0,65401.0,0.154554]
[1727416301724,0.63538,65402.0,65401.0,0.003652]
[1727416302179,0.64269848,65402.0,65401.0,0.155554]
[1727416302396,0.64269848,65402.0,65401.0,0.002652]
[1727416302622,0.65169848,65402.0,65401.0,0.003652]
[1727416303079,0.65169848,65402.0,65401.0,0.002652]
[1727416303338,0.66369848,65402.0,65401.0,0.003652]
[1727416303791,0.65169848,65402.0,65401.0,0.002652]
[1727416304042,0.65969848,65402.0,65401.0,0.003652]
[1727416306852,0.65969848,65402.0,65401.0,0.11812048]
[1727416307117,0.65969848,65402.0,65401.0,0.003652]
[1727416307334,0.81682838,65402.0,65401.0,0.11810461]
[1727416309402,0.95975022,65402.0,65401.0,0.09519207]
[1727416309641,0.95975022,65402.0,65401.0,0.003652]
[1727416310065,0.95075022,65402.0,65401.0,0.04842485]
[1727416310282,0.94275022,65402.0,65401.0,0.001652]
[1727416310501,0.002,65399.0,65398.0,0.04577285]
[1727416310757,0.1767,65397.0,65396.0,0.06865649]
[1727416310994,0.1747,65395.0,65394.0,0.04576773]
[1727416311207,0.1767,65394.0,65393.0,0.04576773]
[1727416311420,0.1767,65394.0,65391.0,0.06865649]
[1727416311421,0.1767,65392.0,65391.0,0.06865649]
[1727416311636,0.63538,65392.0,65391.0,0.06865649]
[1727416311850,0.46068,65392.0,65391.0,0.04575541]
[1727416312036,0.788303,65392.0,65391.0,0.04575541]
[1727416312262,0.788303,65392.0,65385.0,0.04575541]
[1727416312263,0.002,65387.0,65385.0,0.04575541]
[1727416312477,0.23034,65385.0,65384.0,0.07031049]
[1727416312696,0.68902,65385.0,65384.0,0.001654]
[1727416313354,0.68902,65385.0,65384.0,0.04737749]
[1727416313581,0.53608,65385.0,65384.0,0.04737749]
[1727416314018,0.53608,65385.0,65384.0,0.002654]
[1727416314228,0.53608,65385.0,65384.0,0.04836089]
[1727416314431,0.5443202,65385.0,65384.0,0.04836089]
[1727416314943,0.7965602,65385.0,65384.0,0.002654]
[1727416315168,0.7955602,65385.0,65384.0,0.002654]
[1727416315834,0.7955602,65385.0,65384.0,0.001654]
[1727416316054,0.8045602,65385.0,65384.0,0.002654]
[1727416316654,0.8185602,65385.0,65384.0,0.003654]
[1727416317136,0.8095602,65385.0,65384.0,0.002654]
[1727416317391,0.95353888,65385.0,65384.0,0.003654]
[1727416317965,0.8235602,65385.0,65384.0,0.003654]
[1727416321407,0.6686202,65385.0,65384.0,0.156596]
[1727416322118,0.6686202,65385.0,65384.0,0.003654]
[1727416322335,0.67281421,65385.0,65384.0,0.003654]
[1727416322992,0.59941421,65385.0,65384.0,0.156596]
[1727416323445,0.59941421,65385.0,65384.0,0.22508032]
[1727416323641,0.49811421,65385.0,65384.0,0.22508032]
[1727416323840,0.49811421,65385.0,65384.0,0.156596]
[1727416324111,0.49811421,65385.0,65384.0,0.24790843]
[1727416324350,0.49811421,65385.0,65384.0,0.24770843]
[1727416324571,0.49811421,65385.0,65384.0,0.24700843]
[1727416325095,0.81815421,65385.0,65384.0,0.07110159]
[1727416325317,0.66521421,65385.0,65384.0,0.001954]
[1727416325553,0.58941421,65385.0,65384.0,0.22324359]
[1727416325780,0.58941421,65385.0,65384.0,0.22324657]
[1727416326030,0.58941421,65385.0,65384.0,0.24590843]
[1727416326218,0.58941421,65385.0,65384.0,0.24520843]
[1727416326654,0.58941421,65385.0,65384.0,0.24500843]
[1727416326869,0.59141421,65385.0,65384.0,0.24490843]
[1727416326978,0.59141421,65385.0,65384.0,0.24430843]
[1727416327234,0.58941421,65385.0,65384.0,0.26703653]
[1727416327480,0.59141421,65385.0,65384.0,0.26683653]
[1727416327710,0.59141421,65385.0,65384.0,0.26663653]
[1727416327920,0.59141421,65385.0,65384.0,0.26613653]
[1727416328370,0.59141421,65385.0,65384.0,0.26593653]
[1727416328820,0.50011421,65385.0,65384.0,0.26573653]
[1727416329297,0.49811421,65385.0,65384.0,0.151596]
[1727416329539,0.49811421,65385.0,65384.0,0.32694764]
[1727416329960,0.49811421,65385.0,65384.0,0.151596]
[1727416330186,0.49811421,65385.0,65384.0,0.2885376]
[1727416330416,0.49811421,65385.0,65384.0,0.151596]
[1727416330641,0.48668,65385.0,65384.0,0.151596]
[1727416330875,0.48668,65385.0,65384.0,0.2885592]
[1727416331095,0.49813759,65385.0,65384.0,0.151596]
[1727416331997,0.50013759,65385.0,65384.0,0.151596]
[1727416333556,0.49813759,65385.0,65384.0,0.151596]
[1727416335795,0.49813759,65385.0,65384.0,0.15325]
[1727416338786,0.48668,65385.0,65384.0,0.29035095]
[1727416339251,0.49812106,65385.0,65384.0,0.15325]
[1727416339712,0.49812106,65385.0,65384.0,0.29043664]
[1727416339942,0.49812106,65385.0,65384.0,0.15325]
[1727416340208,0.49812106,65385.0,65384.0,0.29043658]
[1727416340668,0.49812106,65385.0,65384.0,0.15325]
[1727416344977,0.57842106,65385.0,65384.0,0.15325]
[1727416347504,0.57924906,65385.0,65384.0,0.15325]
[1727416348385,0.57924906,65385.0,65384.0,0.35600915]
[1727416350582,0.57724906,65385.0,65384.0,0.35600915]
[1727416350780,0.49894906,65385.0,65384.0,0.15325]
[1727416353821,0.50094906,65385.0,65384.0,0.15325]
[1727416354683,0.49894906,65385.0,65384.0,0.15325]
[1727416355328,0.49894906,65385.0,65384.0,0.35644883]
[1727416355985,0.49894906,65385.0,65384.0,0.15325]
[1727416367102,0.50094906,65385.0,65384.0,0.15325]
[1727416368632,0.49894906,65385.0,65384.0,0.15325]
[1727416369959,0.50094906,65385.0,65384.0,0.15325]
[1727416372222,0.49894906,65385.0,65384.0,0.15325]
[1727416375326,0.50094906,65385.0,65384.0,0.15325]
[1727416375759,0.49894906,65385.0,65384.0,0.15325]
[1727416375947,0.50094906,65385.0,65384.0,0.001654]
[1727416376912,0.50094906,65385.0,65384.0,0.154596]
[1727416377369,0.67584906,65385.0,65384.0,0.001654]
[1727416377596,0.82878906,65385.0,65384.0,0.001654]
[1727416378449,0.67724571,65385.0,65384.0,0.001654]
[1727416379574,0.83018571,65385.0,65384.0,0.20509158]
[1727416379790,0.83018571,65385.0,65384.0,0.001654]
[1727416383643,0.59294571,65385.0,65384.0,0.35803358]
[1727416383888,0.59294571,65385.0,65384.0,0.154596]
[1727416384571,0.580108,65385.0,65384.0,0.154596]
[1727416385036,0.59290233,65385.0,65384.0,0.154596]
[1727416392672,0.59490233,65385.0,65384.0,0.154596]
[1727416393375,0.59490233,65385.0,65384.0,0.001654]
[1727416393607,0.66968586,65385.0,65384.0,0.001654]
[1727416393720,0.66968586,65385.0,65384.0,0.20504844]
[1727416393957,0.59490233,65385.0,65384.0,0.001654]
[1727416395672,0.67420233,65385.0,65384.0,0.001654]
[1727416395888,0.82714233,65385.0,65384.0,0.001654]
[1727416397221,0.83143235,65385.0,65384.0,0.001654]
[1727416404683,0.59919235,65385.0,65384.0,0.001654]
[1727416405055,0.59919235,65385.0,65384.0,0.20502459]
[1727416405259,0.59919235,65385.0,65384.0,0.001654]
[1727416405508,0.59919235,65385.0,65384.0,0.154596]
[1727416406164,0.59919235,65385.0,65384.0,0.001654]
[1727416409133,0.50459235,65385.0,65384.0,0.26975417]
[1727416410319,0.49059235,65385.0,65384.0,0.26975417]
[1727416410563,0.49059235,65385.0,65384.0,0.27075417]
[1727416410794,0.49959235,65385.0,65384.0,0.27075417]
[1727416411024,0.48559235,65385.0,65384.0,0.27075417]
[1727416411263,0.47659235,65385.0,65384.0,0.26975417]
[1727416411491,0.47759235,65385.0,65384.0,0.26975417]
[1727416412886,0.47859235,65385.0,65384.0,0.26975417]
[1727416415164,0.47859235,65385.0,65384.0,0.36975417]
[1727416434024,0.461508,65385.0,65384.0,0.36975417]
[1727416434242,0.4687482,65385.0,65384.0,0.36975417]
[1727416434452,0.47912825,65385.0,65384.0,0.36975417]
[1727416436539,0.47912825,65385.0,65384.0,0.54804211]
[1727416436789,0.47912825,65385.0,65384.0,0.72594211]
[1727416437005,0.47912825,65385.0,65384.0,0.77949349]
[1727416437223,0.461508,65385.0,65384.0,0.77949349]
[1727416437439,0.4687482,65385.0,65384.0,0.77949349]
[1727416437679,0.4791242,65385.0,65384.0,0.77949349]
[1727416438838,0.4781242,65385.0,65384.0,0.77949349]
[1727416439087,0.4771242,65385.0,65384.0,0.77949349]
[1727416439308,0.4781242,65385.0,65384.0,0.78649349]
[1727416440195,0.4791242,65385.0,65384.0,0.84554943]
[1727416440433,0.4791242,65385.0,65384.0,0.69112766]
[1727416440643,0.4791242,65385.0,65384.0,0.80628583]
[1727416440881,0.4791242,65385.0,65384.0,0.59152766]
[1727416441099,0.4791242,65385.0,65384.0,0.70668583]
[1727416441790,0.4791242,65385.0,65384.0,0.72252466]
[1727416442232,0.4791242,65385.0,65384.0,0.64422466]
[1727416442454,0.4791242,65385.0,65384.0,0.79891739]
[1727416442930,0.4791242,65385.0,65384.0,0.72236601]
[1727416443585,0.4791242,65385.0,65384.0,0.5954155]
[1727416443803,0.4791242,65385.0,65384.0,0.45588094]
[1727416444042,0.4791242,65385.0,65384.0,0.18543483]
[1727416445436,0.4791242,65385.0,65384.0,0.28543483]
[1727416445660,0.461508,65385.0,65384.0,0.28543483]
[1727416446137,0.47923513,65385.0,65384.0,0.400593]
[1727416447776,0.47923513,65385.0,65384.0,0.38475417]
[1727416448035,0.47923513,65385.0,65384.0,0.40054588]
[1727416451139,0.47923513,65385.0,65384.0,0.28538771]
[1727416451382,0.47923513,65385.0,65384.0,0.2854038]
[1727416451590,0.461508,65385.0,65384.0,0.2854038]
[1727416452063,0.47923513,65385.0,65384.0,0.40056197]
[1727416456755,0.47923513,65385.0,65384.0,0.41319908]
[1727416458659,0.461508,65385.0,65384.0,0.41339571]
[1727416459097,0.47920457,65385.0,65384.0,0.41339571]
[1727416459971,0.47820457,65385.0,65384.0,0.40539571]
[1727416460334,0.47920457,65385.0,65384.0,0.41239571]
[1727416460536,0.47820457,65385.0,65384.0,0.40539571]
[1727416460853,0.47920457,65385.0,65384.0,0.41139571]
[1727416461498,0.47920457,65385.0,65384.0,0.38275417]
[1727416461716,0.47920457,65385.0,65384.0,0.41164042]
[1727416463440,0.57410457,65385.0,65384.0,0.41164042]
[1727416464467,0.47920457,65385.0,65384.0,0.41164042]
[1727416464919,0.47920457,65385.0,65384.0,0.39542346]
[1727416465137,0.47920457,65385.0,65384.0,0.41165231]
[1727416465345,0.47920457,65385.0,65384.0,0.58994025]
[1727416466298,0.47920457,65385.0,65384.0,0.58996605]
[1727416466781,0.47920457,65385.0,65384.0,0.64353777]
[1727416467722,0.47820457,65385.0,65384.0,0.5223796]
[1727416467932,0.47820457,65385.0,65384.0,0.58396605]
[1727416468147,0.47820457,65385.0,65384.0,0.58296605]
[1727416468591,0.47920457,65385.0,65384.0,0.58996605]
[1727416470277,0.47920457,65385.0,65384.0,0.47480788]
[1727416470485,0.47920457,65385.0,65384.0,0.58996605]
[1727416470727,0.47920457,65385.0,65384.0,0.74486902]
[1727416471154,0.47920457,65385.0,65384.0,0.58996605]
[1727416471376,0.47920457,65385.0,65384.0,0.58996415]
[1727416471594,0.47920457,65385.0,65384.0,0.57374105]
[1727416471810,0.47920457,65385.0,65384.0,0.57734376]
[1727416472238,0.47920457,65385.0,65384.0,0.5900443]
[1727416473371,0.47920457,65385.0,65384.0,0.74496179]
[1727416473796,0.47920457,65385.0,65384.0,0.5900443]
[1727416474005,0.47920457,65385.0,65384.0,0.74496179]
[1727416474219,0.47920457,65385.0,65384.0,0.5900443]
[1727416474428,0.47920457,65385.0,65384.0,0.74496179]
[1727416474662,0.47920457,65385.0,65384.0,0.60680362]
[1727416474866,0.65410457,65385.0,65384.0,0.45188613]
[1727416475073,0.65410457,65385.0,65384.0,0.29659819]
[1727416475283,0.65410457,65385.0,65384.0,0.29663728]
[1727416475499,0.65410457,65385.0,65384.0,0.45155477]
[1727416476120,0.65410457,65385.0,65384.0,0.29663728]
[1727416476371,0.65410457,65385.0,65384.0,0.45155477]
[1727416476585,0.65410457,65385.0,65384.0,0.29663728]
[1727416477022,0.65410457,65385.0,65384.0,0.45155477]
[1727416477225,0.65410457,65385.0,65384.0,0.29663728]
[1727416477407,0.65410457,65385.0,65384.0,0.45155477]
[1727416478018,0.65410457,65385.0,65384.0,0.29663728]
[1727416478614,0.65410457,65385.0,65384.0,0.45155477]
[1727416478819,0.65410457,65385.0,65384.0,0.29663728]
[1727416479427,0.65410457,65385.0,65384.0,0.45158039]
[1727416479653,0.57900457,65385.0,65384.0,0.45158039]
[1727416479825,0.47920457,65385.0,65384.0,0.56673856]
[1727416480394,0.47920457,65385.0,65384.0,0.41179545]
[1727416480800,0.47920457,65385.0,65384.0,0.56673855]
[1727416481038,0.47920457,65385.0,65384.0,0.41179545]
[1727416481223,0.47920457,65385.0,65384.0,0.56673855]
[1727416481445,0.47920457,65385.0,65384.0,0.41179545]
[1727416483925,0.47920457,65385.0,65384.0,0.56673855]
[1727416484138,0.47920457,65385.0,65384.0,0.41179545]
[1727416484346,0.47920457,65385.0,65384.0,0.56675304]
[1727416486854,0.47920457,65385.0,65384.0,0.45159487]
[1727416487274,0.57900457,65385.0,65384.0,0.45159487]
[1727416489270,0.57900457,65385.0,65384.0,0.43525413]
[1727416489493,0.57900457,65385.0,65384.0,0.43888494]
[1727416489704,0.57900457,65385.0,65384.0,0.45154858]
[1727416490606,0.57900457,65385.0,65384.0,0.29651123]
[1727416490823,0.57900457,65385.0,65384.0,0.45154802]
[1727416492299,0.57900457,65385.0,65384.0,0.43529643]
[1727416492502,0.57900457,65385.0,65384.0,0.43889241]
[1727416492833,0.57900457,65385.0,65384.0,0.45155736]
[1727416493458,0.57900457,65385.0,65384.0,0.42262987]
[1727416493658,0.57900457,65385.0,65384.0,0.4388697]
[1727416494092,0.57900457,65385.0,65384.0,0.45153368]
[1727416494540,0.57900457,65385.0,65384.0,0.45153623]
[1727416494971,0.57800457,65385.0,65384.0,0.44553623]
[1727416495180,0.58000457,65385.0,65384.0,0.43287225]
[1727416495396,0.58000457,65385.0,65384.0,0.254596]
[1727416495598,0.65610457,65385.0,65384.0,0.254596]
[1727416496008,0.65510457,65385.0,65384.0,0.254596]
[1727416496221,0.65510457,65385.0,65384.0,0.01429331]
[1727416496427,0.65510457,65385.0,65384.0,0.001654]
[1727416496840,0.65410457,65385.0,65384.0,0.001654]
[1727416497047,0.65610457,65385.0,65384.0,0.001654]
[1727416497274,0.65710457,65385.0,65384.0,0.2050845]
[1727416498503,0.65710457,65385.0,65384.0,0.35798309]
[1727416498713,0.65710457,65385.0,65384.0,0.20504109]
[1727416498923,0.81004457,65385.0,65384.0,0.20504109]
[1727416499131,0.81004457,65385.0,65384.0,0.001654]
[1727416499778,0.65710457,65385.0,65384.0,0.001654]
[1727416499992,0.65510457,65385.0,65384.0,0.001654]
[1727416500199,0.66310457,65385.0,65384.0,0.001654]
[1727416500827,0.65410457,65385.0,65384.0,0.154596]
[1727416501253,0.67010457,65385.0,65384.0,0.155596]
[1727416501459,0.66210457,65385.0,65384.0,0.154596]
[1727416501898,0.66210457,65385.0,65384.0,0.155596]
[1727416502118,0.67010457,65385.0,65384.0,0.155596]
[1727416502851,0.66298995,65385.0,65384.0,0.155596]
[1727416503985,0.66298995,65385.0,65384.0,0.002654]
[1727416504405,0.66298995,65385.0,65384.0,0.20604109]
[1727416505074,0.66298995,65385.0,65384.0,0.002654]
[1727416506416,0.81592995,65385.0,65384.0,0.002654]
[1727416507767,0.79992995,65385.0,65384.0,0.001654]
[1727416508187,0.82792995,65385.0,65384.0,0.001654]
[1727416508401,0.81392995,65385.0,65384.0,0.001654]
[1727416508816,0.82792995,65385.0,65384.0,0.001654]
[1727416509492,0.98341276,65385.0,65384.0,0.001654]
[1727416509918,0.98341276,65385.0,65384.0,0.11629033]
[1727416510343,0.96941276,65385.0,65384.0,0.11629033]
[1727416511654,0.96941276,65385.0,65384.0,0.001654]
[1727416511863,0.98341276,65385.0,65384.0,0.001654]
[1727416512072,0.96941276,65385.0,65384.0,0.09333912]
[1727416512493,0.98341276,65385.0,65384.0,0.001654]
[1727416512931,0.98341276,65385.0,65384.0,0.09332928]
[1727416512932,0.82792995,65385.0,65384.0,0.09332928]
[1727416513141,0.82792995,65385.0,65384.0,0.07041092]
[1727416513350,0.82792995,65385.0,65384.0,0.001654]
[1727416513805,0.81592995,65385.0,65384.0,0.001654]
[1727416514035,0.95631801,65385.0,65384.0,0.001654]
[1727416514293,0.98431801,65385.0,65384.0,0.001654]
[1727416514506,0.97031801,65385.0,65384.0,0.001654]
[1727416514932,0.98431801,65385.0,65384.0,0.001654]
[1727416516654,0.325054,65379.0,65378.0,0.0009839]
[1727416516889,0.783734,65379.0,65378.0,0.0009839]
[1727416517105,0.154961,65376.0,65375.0,0.001654]
[1727416517320,0.89889917,65376.0,65375.0,0.04749596]
[1727416517535,1.0585813,65376.0,65375.0,0.04749596]
[1727416517748,1.0585813,65376.0,65375.0,0.001654]
[1727416518371,1.0715813,65376.0,65375.0,0.001654]
[1727416518793,1.0585813,65376.0,65375.0,0.001654]
[1727416519084,1.0715813,65376.0,65375.0,0.001654]
[1727416519550,0.91519324,65376.0,65375.0,0.001654]
[1727416519976,0.92919324,65376.0,65375.0,0.001654]
[1727416520653,0.93643037,65376.0,65375.0,0.001654]
[1727416521323,0.96041169,65376.0,65375.0,0.001654]
[1727416521756,0.94741169,65376.0,65375.0,0.001654]
[1727416521991,1.10379975,65376.0,65375.0,0.001654]
[1727416522274,1.11779975,65376.0,65375.0,0.001654]
[1727416522707,1.10379975,65376.0,65375.0,0.001654]
[1727416522921,1.11779975,65376.0,65375.0,0.001654]
[1727416523350,1.10379975,65376.0,65375.0,0.001654]
[1727416523790,1.11779975,65376.0,65375.0,0.001654]
[1727416524207,1.10379975,65376.0,65375.0,0.001654]
[1727416524414,1.08979975,65376.0,65375.0,0.001654]
[1727416524622,1.10379975,65376.0,65375.0,0.001654]
[1727416524832,1.11779975,65376.0,65375.0,0.001654]
[1727416525245,1.09381843,65376.0,65375.0,0.001654]
[1727416526360,1.07981843,65376.0,65375.0,0.001654]
[1727416526852,0.93743037,65376.0,65375.0,0.001654]
[1727416528491,0.8222722,65376.0,65375.0,0.001654]
[1727416532160,0.82834037,65376.0,65375.0,0.001654]
[1727416533613,0.59278912,65376.0,65375.0,0.001654]
[1727416533831,0.59278912,65376.0,65375.0,0.154617]
[1727416533832,0.49658912,65376.0,65375.0,0.154617]
[1727416534338,0.50162572,65376.0,65375.0,0.29180496]
[1727416534531,0.50162572,65376.0,65375.0,0.233817]
[1727416534532,0.48668,65376.0,65375.0,0.233817]
[1727416534732,0.49397211,65376.0,65375.0,0.233817]
[1727416534935,0.49397211,65376.0,65375.0,0.51210494]
[1727416535151,0.47997211,65376.0,65375.0,0.51210494]
[1727416535359,0.49197211,65376.0,65375.0,0.51210494]
[1727416535777,0.46597211,65376.0,65375.0,0.51210494]
[1727416535995,0.47897211,65376.0,65375.0,0.51210494]
[1727416536408,0.47897211,65376.0,65375.0,0.68755458]
[1727416536612,0.46597211,65376.0,65375.0,0.68755458]
[1727416537043,0.46697211,65376.0,65375.0,0.68755458]
[1727416537298,0.46697211,65376.0,65375.0,0.77865458]
[1727416537552,0.46697211,65376.0,65375.0,0.68755458]
[1727416537553,0.04785136,65376.0,65375.0,0.68755458]
[1727416537987,0.04055925,65376.0,65375.0,0.68755458]
[1727416538842,0.03955925,65376.0,65375.0,0.89008954]
[1727416539083,0.04155925,65376.0,65375.0,0.89308954]
[1727416539511,0.04055925,65376.0,65375.0,0.89108954]
[1727416539730,0.04055925,65376.0,65375.0,0.89208954]
[1727416539935,0.04155925,65376.0,65375.0,0.89308954]
[1727416540398,0.04155925,65376.0,65375.0,0.69055458]